bitfinex/quotes_ETHUSD_20241116
["timestamp","ask_amount","ask_price","bid_price","bid_amount"]
[1731794906060,3.17209,3152.5,3151.9,3.9783]
[1731794907922,3.17209,3152.5,3151.9,0.8057]
[1731794908233,3.17209,3152.5,3151.9,3.97836]
[1731794910015,0.8143,3152.7,3152.2,3.17232]
[1731794910163,0.7691,3152.9,3152.2,3.17232]
[1731794910360,3.17184,3152.8,3152.2,3.17232]
[1731794911405,3.17192,3152.7,3152.0,3.23596181]
[1731794911578,3.17192,3152.7,3152.1,3.17245]
[1731794911777,3.17194,3152.7,3152.0,3.17252]
[1731794911971,3.17194,3152.7,3152.1,3.17248]
[1731794913091,3.17178,3152.8,3152.1,3.23592337]
[1731794913313,3.17191,3152.7,3152.1,3.23592337]
[1731794915296,0.0491471,3152.6,3152.1,3.23592337]
[1731794916547,0.0491471,3152.6,3152.1,3.17248]
[1731794917320,0.0491471,3152.6,3151.9,3.97832]
[1731794917321,3.17209,3152.5,3151.9,3.97832]
[1731794917516,0.04910766,3152.4,3151.9,3.97832]
[1731794917746,3.99038766,3152.4,3151.9,3.97832]
[1731794918058,0.81820766,3152.4,3151.9,3.97831]
[1731794918427,0.04910766,3152.4,3151.9,3.97831]
[1731794918762,0.04910766,3152.4,3152.0,3.17258]
[1731794919963,0.04910766,3152.4,3152.0,3.17251]
[1731794920466,3.94117,3152.6,3152.0,3.17251]
[1731794920763,3.883386,3152.5,3152.0,3.17251]
[1731794920985,3.93251338,3152.5,3151.9,0.8057]
[1731794921186,3.93251338,3152.5,3151.9,3.97836]
[1731794921759,3.17218,3152.4,3151.9,3.97836]
[1731794922140,0.04908794,3152.3,3151.9,3.97836]
[1731794923691,3.883456,3152.5,3151.9,3.97836]
[1731794923842,0.04907155,3152.2,3151.9,3.97836]
[1731794924041,3.883456,3152.5,3151.9,3.97836]
[1731794924568,0.049111,3152.4,3151.9,3.97836]
[1731794926004,0.049111,3152.4,3152.0,3.17258]
[1731794926350,0.049111,3152.4,3151.9,0.8057]
[1731794928343,3.221301,3152.4,3151.9,0.8057]
[1731794930114,0.049111,3152.4,3151.9,3.97838]
[1731794941976,0.049111,3152.4,3151.9,3.97831]
[1731794942191,0.049111,3152.4,3152.0,3.17258]
[1731794942980,0.7755,3152.3,3151.8,3.17275]
[1731794943320,0.7755,3152.3,3151.9,3.17259]
[1731794943556,0.04906705,3152.2,3151.9,3.17259]
[1731794943759,0.7755,3152.3,3151.9,3.17259]
[1731794944059,1.35227938,3152.2,3151.7,0.1]
[1731794944358,0.8094,3152.1,3151.7,0.1]
[1731794944564,0.04902316,3152.0,3151.7,0.1]
[1731794946568,3.22162316,3152.0,3151.7,0.1]
[1731794946708,0.04902316,3152.0,3151.7,0.1]
[1731794947775,0.45211548,3152.0,3151.7,0.1]
[1731794948069,3.17279,3151.8,3151.7,0.1]
[1731794948419,3.22172162,3151.8,3151.7,0.1]
[1731794949351,5.33433395,3151.8,3151.7,0.1]
[1731794950443,5.88433395,3151.8,3151.7,0.1]
[1731794953181,7.18754628,3151.8,3151.7,0.1]
[1731794953324,8.54083691,3151.8,3151.7,0.1]
[1731794954282,11.55026606,3151.8,3151.7,0.1]
[1731794958912,11.55026606,3151.8,3151.7,1e-05]
[1731794959540,3.1743,3150.3,3150.2,0.49656087]
[1731794959857,3.22273825,3150.3,3150.2,0.49656087]
[1731794960420,3.22273825,3150.3,3149.7,0.8035]
[1731794960629,3.17445,3150.2,3149.7,0.8035]
[1731794960817,3.17445,3150.2,3149.8,0.49662515]
[1731794961030,0.04839875,3150.1,3149.8,0.49662515]
[1731794961612,3.22289875,3150.1,3149.8,0.49662515]
[1731794961808,3.1743,3150.3,3149.8,0.49662515]
[1731794962009,0.048379,3150.0,3149.8,0.49662515]
[1731794962319,0.04835925,3149.9,3149.8,0.49662515]
[1731794963121,3.17441,3150.2,3149.8,0.49662515]
[1731794963315,0.04835925,3149.9,3149.8,0.49662515]
[1731794963519,3.17441,3150.2,3149.8,0.49662515]
[1731794964121,0.04839875,3150.1,3149.8,0.49662515]
[1731794964713,3.1747,3149.9,3149.8,0.49662515]
[1731794964916,0.04824722,3149.9,3149.8,0.49662515]
[1731794965852,0.04824722,3149.9,3149.7,0.8035]
[1731794968362,3.17451,3150.1,3149.7,0.8035]
[1731794968515,3.1746,3150.0,3149.7,0.8035]
[1731794968716,3.22276381,3150.0,3149.7,0.8035]
[1731794969419,3.17476,3149.9,3149.4,0.8195]
[1731794969982,0.0481243,3149.8,3149.4,0.8195]
[1731794970278,3.2229243,3149.8,3149.4,0.8195]
[1731794970578,3.17507,3149.6,3149.4,0.8195]
[1731794970726,3.17507,3149.6,3149.2,0.1026344]
[1731794970727,3.22316504,3149.5,3149.2,0.1026344]
[1731794970928,0.04806504,3149.5,3149.2,0.1026344]
[1731794971234,3.1751,3149.5,3149.2,0.1026344]
[1731794971453,3.17521,3149.4,3149.2,0.1026344]
[1731794971764,0.04799981,3149.4,3149.2,0.1026344]
[1731794972675,3.1753,3149.3,3149.2,0.1026344]
[1731794972988,4.05028005,3149.3,3149.2,0.1026344]
[1731794973194,4.60028005,3149.3,3149.2,0.1026344]
[1731794973803,7.60028005,3149.3,3149.2,0.1026344]
[1731794974215,8.90349238,3149.3,3149.2,0.1026344]
[1731794974416,10.63447441,3149.3,3149.2,4.4e-06]
[1731794974925,12.3983451,3149.3,3149.2,4.4e-06]
[1731794977385,12.38891595,3149.3,3149.2,4.4e-06]
[1731794977617,8.77183293,3149.3,3149.2,4.4e-06]
[1731794978864,9.32183293,3149.3,3149.2,4.4e-06]
[1731794980329,12.38891595,3149.3,3149.2,4.4e-06]
[1731794984757,8.77183293,3149.3,3149.2,4.4e-06]
[1731794985449,7.94483293,3149.3,3149.2,4.4e-06]
[1731794985766,0.04798005,3149.3,3149.2,4.4e-06]
[1731794986079,3.17511,3149.5,3149.2,4.4e-06]
[1731794986235,0.04601807,3149.3,3149.2,4.4e-06]
[1731794986434,3.1752,3149.4,3149.2,4.4e-06]
[1731794986638,0.04603251,3149.3,3149.2,4.4e-06]
[1731794987035,3.22133251,3149.3,3149.2,4.4e-06]
[1731794992165,7.47805978,3149.3,3149.2,4.4e-06]
[1731794992591,11.23385978,3149.3,3149.2,4.4e-06]
[1731794995861,6.86097676,3149.3,3149.2,4.4e-06]
[1731794998387,3.86097676,3149.3,3149.2,4.4e-06]
[1731795000113,0.04603251,3149.3,3149.2,4.4e-06]
[1731795001518,3.22133251,3149.3,3149.2,4.4e-06]
[1731795001717,0.04603251,3149.3,3149.2,4.4e-06]
[1731795001902,4.04493251,3149.3,3149.2,4.4e-06]
[1731795002224,4.04499806,3149.3,3149.2,4.4e-06]
[1731795002520,5.07373217,3149.3,3149.2,4.4e-06]
[1731795003587,0.04609806,3149.3,3149.2,4.4e-06]
[1731795005092,3.22139806,3149.3,3149.2,4.4e-06]
[1731795005903,0.04609806,3149.3,3149.2,4.4e-06]
[1731795006442,0.04611138,3149.3,3149.2,4.4e-06]
[1731795006596,3.17521,3149.4,3149.2,4.4e-06]
[1731795006795,0.04611138,3149.3,3149.2,4.4e-06]
[1731795011431,3.22141138,3149.3,3149.2,4.4e-06]
[1731795011805,3.99165881,3149.3,3149.2,4.4e-06]
[1731795013553,0.81635881,3149.3,3149.2,4.4e-06]
[1731795013753,0.04611138,3149.3,3149.2,4.4e-06]
[1731795016057,3.1749,3149.7,3149.2,0.7506044]
[1731795016285,0.0446419,3149.3,3149.2,0.7506044]
[1731795016489,9.34949,3149.9,3149.2,3.9260044]
[1731795016690,0.698391,3149.8,3149.2,3.9260044]
[1731795016869,0.74313278,3149.8,3149.2,3.9260044]
[1731795017210,0.74313278,3149.8,3149.3,3.1753]
[1731795017414,0.04474178,3149.8,3149.3,3.1753]
[1731795017557,0.04474178,3149.8,3149.2,0.7506044]
[1731795017558,3.17492,3149.7,3149.2,0.7506044]
[1731795017902,0.04470227,3149.6,3149.3,0.7506]
[1731795018053,0.04470227,3149.6,3149.4,3.17519]
[1731795018249,3.17471,3149.9,3149.5,0.7506]
[1731795018960,3.17452,3150.1,3149.5,0.7506]
[1731795019298,3.17452,3150.1,3149.5,3.92569]
[1731795020327,0.04482349,3150.0,3149.5,3.92569]
[1731795021217,3.21948349,3150.0,3149.5,0.7506]
[1731795022570,0.04482349,3150.0,3149.5,0.7506]
[1731795022784,4.48026295,3150.2,3149.6,3.17497]
[1731795022979,3.1747,3149.9,3149.5,0.7506]
[1731795023186,0.04417398,3149.8,3149.5,0.7506]
[1731795024428,0.04417398,3149.8,3149.5,3.9257]
[1731795024786,3.17457,3150.1,3149.5,3.9257]
[1731795025218,0.04421349,3150.0,3149.5,3.9257]
[1731795025489,3.21881349,3150.0,3149.5,3.9257]
[1731795026786,0.04421349,3150.0,3149.5,3.9257]
[1731795026986,3.1745,3150.1,3149.5,3.9257]
[1731795027201,0.04421349,3150.0,3149.5,3.9257]
[1731795028043,0.04421349,3150.0,3149.8,3.1748]
[1731795028350,0.04421349,3150.0,3149.9,3.9872]
[1731795028637,4.47978295,3150.7,3150.0,3.98704]
[1731795028819,0.5265483,3150.6,3150.0,3.98704]
[1731795029188,5.26527295,3150.9,3150.0,0.8125]
[1731795029388,3.17372,3150.9,3150.2,0.8125]
[1731795029901,3.17372,3150.9,3150.2,3.98683]
[1731795030142,3.17372,3150.9,3150.3,3.17423]
[1731795030850,0.01870315,3151.7,3150.7,0.8125]
[1731795030851,0.7857,3151.4,3150.7,0.8125]
[1731795031193,1.30585295,3151.6,3150.7,0.8125]
[1731795031433,3.1733,3151.3,3150.7,3.98637]
[1731795031693,0.31733,3151.2,3150.7,3.98637]
[1731795031927,3.1733,3151.3,3150.7,3.98637]
[1731795032246,3.17346,3151.2,3150.7,0.8125]
[1731795032899,3.17346,3151.2,3150.7,3.98638]
[1731795033597,3.17346,3151.2,3150.7,0.8125]
[1731795034245,3.1736,3151.0,3150.7,0.8125]
[1731795034755,3.17346,3151.2,3150.7,0.8125]
[1731795034756,6.34691,3151.2,3150.7,0.8125]
[1731795035171,3.17362,3151.0,3150.7,0.8125]
[1731795035311,0.07155265,3151.1,3150.7,0.8125]
[1731795035513,0.07151487,3150.9,3150.7,0.8125]
[1731795035708,3.17345,3151.2,3150.7,0.8125]
[1731795036032,3.1735,3151.1,3150.7,0.8125]
[1731795036234,3.1735,3151.1,3149.9,3.1847]
[1731795036235,0.07153376,3151.0,3150.2,0.8125]
[1731795036426,3.1743,3150.3,3150.0,0.8125]
[1731795036670,3.24576375,3150.2,3150.0,0.8125]
[1731795037431,0.07136375,3150.2,3150.0,0.8125]
[1731795037768,3.17431,3150.3,3150.0,0.8125]
[1731795037963,0.07134263,3150.1,3150.0,0.8125]
[1731795038164,3.17431,3150.3,3150.0,0.8125]
[1731795038368,0.07134263,3150.1,3150.0,0.8125]
[1731795038867,3.17431,3150.3,3150.0,0.8125]
[1731795039068,0.07134263,3150.1,3150.0,0.8125]
[1731795039365,3.17431,3150.3,3150.0,0.8125]
[1731795039535,0.07134263,3150.1,3150.0,0.8125]
[1731795039732,3.17431,3150.3,3150.0,0.8125]
[1731795039938,0.07134263,3150.1,3150.0,0.8125]
[1731795040154,3.17431,3150.3,3150.0,0.8125]
[1731795040352,0.07134263,3150.1,3150.0,0.8125]
[1731795040538,3.17448,3150.2,3150.0,0.8125]
[1731795040755,0.07134263,3150.1,3150.0,0.8125]
[1731795041268,3.17431,3150.3,3150.0,0.8125]
[1731795041502,0.07134263,3150.1,3150.0,0.8125]
[1731795041638,3.17431,3150.3,3150.0,0.8125]
[1731795041820,3.24576153,3150.2,3150.0,0.8125]
[1731795042565,0.07136153,3150.2,3150.0,0.8125]
[1731795042970,3.95996,3150.4,3150.0,0.8125]
[1731795043279,3.1743,3150.3,3150.0,0.8125]
[1731795043471,3.24568043,3150.3,3150.0,0.8125]
[1731795044140,3.17446,3150.2,3150.0,0.8125]
[1731795044468,0.07134263,3150.1,3150.0,0.8125]
[1731795044870,3.1743,3150.3,3150.0,0.8125]
[1731795045169,0.07134263,3150.1,3150.0,0.8125]
[1731795045370,3.1745,3150.1,3149.6,0.8038]
[1731795045541,3.24584263,3150.1,3149.6,0.8038]
[1731795045738,3.17467,3150.0,3149.6,0.8038]
[1731795046123,0.07121718,3149.9,3149.6,0.8038]
[1731795047738,3.17448,3150.2,3149.6,0.8038]
[1731795047923,0.07119827,3149.8,3149.6,0.8038]
[1731795048119,3.17448,3150.2,3149.6,0.8038]
[1731795048320,0.07117937,3149.7,3149.6,3.97878]
[1731795048551,3.17448,3150.2,3149.6,3.97878]
[1731795048768,0.07117937,3149.7,3149.6,3.97878]
[1731795048968,3.17448,3150.2,3149.6,3.97878]
[1731795049377,3.24576498,3150.1,3149.6,3.97878]
[1731795052494,3.24576498,3150.1,3149.6,0.8038]
[1731795055350,3.17474,3149.9,3149.6,0.8038]
[1731795055640,0.07110177,3149.8,3149.6,0.8038]
[1731795056200,3.8165205,3150.1,3149.6,0.8038]
[1731795056390,0.07113958,3150.0,3149.6,0.8038]
[1731795056824,0.07113958,3150.0,3149.6,3.97878]
[1731795057396,0.07113958,3150.0,3149.6,0.8038]
[1731795061415,0.07113958,3150.0,3149.6,3.97878]
[1731795062615,0.07113958,3150.0,3149.2,4.4e-06]
[1731795062616,0.07113958,3150.0,3149.8,0.8067]
[1731795062801,3.17454,3150.1,3149.8,0.8067]
[1731795063006,0.07112181,3150.0,3149.8,0.8067]
[1731795063248,3.17437,3150.3,3149.8,0.8067]
[1731795063449,0.07117404,3150.2,3149.8,0.8067]
[1731795063605,3.17437,3150.3,3149.8,0.8067]
[1731795063800,0.07117404,3150.2,3149.8,0.8067]
[1731795064003,0.317437,3150.3,3149.8,3.98142]
[1731795064204,0.07117404,3150.2,3149.8,3.98142]
[1731795064451,3.1742,3150.4,3149.8,3.98142]
[1731795064750,0.07119294,3150.3,3149.8,3.98142]
[1731795065153,0.07119294,3150.3,3149.9,3.17468]
[1731795065502,3.17413,3150.5,3149.9,3.17468]
[1731795065703,0.07118292,3150.2,3149.9,3.17468]
[1731795066035,0.07116513,3150.1,3149.9,3.17468]
[1731795066202,3.17413,3150.5,3149.9,6.34931]
[1731795066406,0.07122515,3150.4,3149.9,3.17463]
[1731795066651,3.24543515,3150.4,3149.9,3.17463]
[1731795067056,4.05549132,3150.4,3149.8,0.8067]
[1731795067255,3.1743,3150.3,3149.8,0.8067]
[1731795067557,0.07118736,3150.2,3149.8,0.8067]
[1731795067865,3.1743,3150.3,3149.8,3.98149]
[1731795068062,0.07116846,3150.1,3149.8,3.98149]
[1731795068281,0.07118736,3150.2,3149.8,3.98149]
[1731795068482,0.07114956,3150.0,3149.8,3.98149]
[1731795068782,3.1743,3150.3,3149.8,3.98149]
[1731795068931,0.07115839,3149.9,3149.8,3.98149]
[1731795069131,3.1743,3150.3,3149.8,3.98149]
[1731795069663,0.07121509,3150.2,3149.8,3.98149]
[1731795070037,3.1743,3150.3,3149.8,3.98149]
[1731795070259,0.07121509,3150.2,3149.8,3.98149]
[1731795070462,0.56147266,3150.5,3149.8,0.8067]
[1731795070682,0.07119619,3150.1,3150.0,0.7808]
[1731795070926,3.17421,3150.4,3150.0,0.7808]
[1731795071132,0.07119619,3150.1,3150.0,0.7808]
[1731795071650,3.17421,3150.4,3150.0,0.7808]
[1731795071845,0.07123399,3150.3,3150.0,0.7808]
[1731795074648,3.1741,3150.5,3150.0,0.7808]
[1731795074982,0.07125512,3150.4,3150.0,0.7808]
[1731795075732,3.24545512,3150.4,3150.0,0.7808]
[1731795078178,0.07125512,3150.4,3150.0,3.95539]
[1731795078378,0.07125512,3150.4,3150.0,0.7808]
[1731795078582,3.17378,3150.9,3150.1,0.7808]
[1731795078787,3.571528,3150.8,3150.3,3.17429]
[1731795078956,3.64286978,3150.8,3150.3,3.17429]
[1731795079283,3.64286978,3150.8,3150.1,0.7808]
[1731795079284,3.17397,3150.7,3150.1,3.95522]
[1731795079781,0.07130399,3150.6,3150.2,3.17439]
[1731795079935,0.07130399,3150.6,3150.2,3.17438]
[1731795080337,3.17386,3150.8,3150.2,3.17438]
[1731795080577,0.07132059,3150.5,3150.2,3.17438]
[1731795080799,3.17372,3150.9,3150.1,0.7808]
[1731795080944,0.0713017,3150.4,3150.1,3.95527]
[1731795081140,3.17379,3150.8,3150.1,7.1297]
[1731795081470,3.17379,3150.8,3149.4,3.17514]
[1731795081471,3.1744,3150.2,3149.4,3.17514]
[1731795081639,3.17462,3150.0,3149.5,0.798]
[1731795081843,0.07120722,3149.9,3149.5,0.798]
[1731795082041,3.17436,3150.3,3149.8,0.798]
[1731795082273,0.07123949,3150.2,3149.8,0.798]
[1731795082595,3.24566949,3150.2,3149.8,0.798]
[1731795082771,3.17436,3150.3,3149.8,0.798]
[1731795082940,0.07122059,3150.1,3149.8,0.798]
[1731795083141,3.24565949,3150.2,3149.8,0.798]
[1731795083336,0.07120169,3150.0,3149.8,0.798]
[1731795083582,0.8095,3150.5,3149.8,0.798]
[1731795083891,3.17463,3150.0,3149.8,0.798]
[1731795084185,3.1744,3150.2,3149.8,0.798]
[1731795084425,0.07118279,3149.9,3149.8,0.798]
[1731795084600,3.17451,3150.1,3149.8,0.798]
[1731795085086,0.07120169,3150.0,3149.8,0.798]
[1731795086005,3.17507,3149.6,3149.5,0.7954]
[1731795086142,3.17507,3149.6,3149.2,4.4e-06]
[1731795086346,3.17521,3149.4,3149.2,4.4e-06]
[1731795086853,0.07099834,3149.3,3149.2,4.4e-06]
[1731795087056,3.24629834,3149.3,3149.2,4.4e-06]
[1731795087752,4.43844917,3149.3,3149.2,4.4e-06]
[1731795091051,3.79629834,3149.3,3149.2,4.4e-06]
[1731795091247,0.07099834,3149.3,3149.2,0.7954044]
[1731795091453,3.17492,3149.7,3149.2,0.7954044]
[1731795091807,0.06855601,3149.6,3149.2,0.7954044]
[1731795092556,0.06855601,3149.6,3149.2,3.9707944]
[1731795093070,3.98954,3150.1,3149.4,3.17518]
[1731795093297,3.24326496,3150.0,3149.4,3.17518]
[1731795093893,3.17471,3149.9,3149.4,3.17518]
[1731795094112,3.17471,3149.9,3149.2,3.9707944]
[1731795094255,0.06856716,3149.8,3149.2,3.9707944]
[1731795094701,0.06856716,3149.8,3149.3,3.17529]
[1731795094949,0.06856716,3149.8,3149.4,3.17511]
[1731795095254,0.55,3150.0,3149.4,3.23860583]
[1731795095459,0.06865489,3149.9,3149.4,3.23860583]
[1731795099666,0.06865489,3149.9,3149.5,3.97239]
[1731795099954,3.72441,3150.2,3149.6,3.23842336]
[1731795100163,0.06863599,3149.8,3149.6,3.23842336]
[1731795100313,3.72441,3150.2,3149.6,3.23842336]
[1731795100515,0.06861709,3149.7,3149.6,3.23842336]
[1731795100811,1.30503658,3150.5,3149.6,3.23842336]
[1731795100812,3.17405,3150.6,3149.7,0.7973]
[1731795101015,3.17405,3150.6,3150.1,0.7973]
[1731795101758,7.09953,3150.8,3150.1,3.97176]
[1731795102113,3.1734,3151.2,3150.3,3.17429]
[1731795102114,3.92541,3151.0,3150.3,3.17429]
[1731795102392,3.17361,3151.0,3150.3,0.7973]
[1731795103374,3.17361,3151.0,3150.4,3.17411]
[1731795103558,3.17361,3151.0,3150.3,3.9716]
[1731795103559,3.17369,3150.9,3150.3,3.9716]
[1731795104385,3.17361,3151.0,3150.3,3.9716]
[1731795104545,3.72375,3150.9,3150.3,3.9716]
[1731795109691,0.55,3150.7,3150.3,3.9716]
[1731795109980,0.55,3150.5,3150.0,0.7628]
[1731795110184,3.17452,3150.1,3149.7,0.7628]
[1731795110482,0.06444596,3150.0,3149.7,0.7628]
[1731795110681,3.72442,3150.2,3149.7,0.7628]
[1731795110984,0.06446486,3150.1,3149.7,0.7628]
[1731795111184,0.06446486,3150.1,3149.7,3.93761]
[1731795111438,0.06446486,3150.1,3149.7,0.7628]
[1731795112136,4.47987658,3149.8,3149.2,4.4e-06]
[1731795112436,0.55,3149.7,3149.2,4.4e-06]
[1731795112588,3.1752,3149.4,3149.2,4.4e-06]
[1731795112939,0.61430933,3149.7,3149.2,4.4e-06]
[1731795112940,4.5484,3149.3,3149.2,4.4e-06]
[1731795113235,4.61263148,3149.3,3149.2,4.4e-06]
[1731795118337,5.39141363,3149.3,3149.2,4.4e-06]
[1731795123062,4.56831363,3149.3,3149.2,4.4e-06]
[1731795124120,0.06423148,3149.3,3149.2,3.9510044]
[1731795124320,3.17472,3149.9,3149.3,3.17521]
[1731795124606,3.17453,3150.1,3149.5,0.7756]
[1731795125200,0.06206863,3150.0,3149.6,3.175]
[1731795125401,3.17444,3150.2,3149.6,3.175]
[1731795125654,0.06204973,3149.9,3149.6,3.175]
[1731795125815,3.17444,3150.2,3149.6,3.175]
[1731795126016,0.06207885,3149.8,3149.6,3.175]
[1731795126240,0.55,3150.1,3149.6,3.175]
[1731795126419,0.06205994,3149.7,3149.6,3.175]
[1731795126617,3.17421,3150.4,3149.7,3.17487]
[1731795126802,3.809033,3150.4,3149.7,3.17487]
[1731795127301,3.809033,3150.4,3149.8,3.17472]
[1731795128151,3.72431,3150.3,3149.8,3.17472]
[1731795128658,3.72431,3150.3,3149.6,3.175]
[1731795128659,0.55,3150.4,3149.6,3.17497]
[1731795128956,0.55,3150.1,3149.5,3.9507]
[1731795129102,0.55,3150.1,3149.6,3.17497]
[1731795129306,0.55,3150.1,3149.6,6.34989]
[1731795129808,0.55,3150.1,3149.6,3.17492]
[1731795130039,0.55,3150.1,3149.7,3.17489]
[1731795130938,0.55,3150.3,3149.7,3.17489]
[1731795131137,3.7243,3150.3,3149.7,3.17489]
[1731795131809,3.7243,3150.3,3149.8,3.23828721]
[1731795132456,0.55,3150.5,3150.0,3.17458]
[1731795132655,0.55,3150.5,3150.1,3.95008]
[1731795133120,3.17383,3150.8,3150.1,3.95]
[1731795133314,3.1739,3150.7,3150.2,0.06348141]
[1731795133568,3.17389,3150.7,3150.1,3.95]
[1731795134664,0.55,3150.6,3150.1,3.95]
[1731795135884,0.55,3150.6,3150.2,0.06347919]
[1731795136063,3.98764,3151.0,3150.2,3.23785919]
[1731795136064,3.17379,3150.8,3150.2,3.23785919]
[1731795136266,0.55,3150.7,3150.2,0.06347919]
[1731795136431,3.7239,3150.7,3150.1,3.95]
[1731795137725,3.72418,3150.5,3150.1,0.7756]
[1731795138440,3.17456,3150.1,3149.8,0.7756]
[1731795138636,0.55,3150.0,3149.8,0.7756]
[1731795139519,3.17433,3150.3,3149.8,0.7756]
[1731795139520,0.55,3150.2,3149.8,0.7756]
[1731795139770,0.55,3150.2,3149.8,0.83908859]
[1731795140216,0.06232761,3150.1,3149.8,0.7756]
[1731795140370,0.55,3150.0,3149.8,0.7756]
[1731795140571,0.61227298,3150.0,3149.8,0.7756]
[1731795142101,3.1747,3149.9,3149.8,0.7756]
[1731795142314,3.23695073,3149.9,3149.8,0.7756]
[1731795142688,0.06225073,3149.9,3149.6,0.7866]
[1731795146323,3.23698073,3149.9,3149.6,0.7866]
[1731795146527,3.23698073,3149.9,3149.4,3.94649]
[1731795146724,0.06225073,3149.9,3149.4,3.94649]
[1731795147036,0.06225073,3149.9,3149.5,3.1751]
[1731795147593,0.06225073,3149.9,3149.5,3.17508]
[1731795149098,0.06225073,3149.9,3149.6,3.17494]
[1731795149295,0.06225073,3149.9,3149.8,3.9461]
[1731795149594,3.17414,3150.5,3149.8,3.9461]
[1731795149595,3.17401,3150.6,3150.0,3.17454]
[1731795149808,0.55,3150.5,3150.0,3.17454]
[1731795151246,0.7938,3150.9,3150.3,0.7713]
[1731795151443,3.17354,3151.1,3150.4,3.23766484]
[1731795151444,3.17365,3151.0,3150.4,3.23766484]
[1731795151745,3.1736,3151.0,3150.4,3.23766484]
[1731795152524,0.55,3150.8,3150.4,3.23766484]
[1731795153104,0.55,3150.8,3150.4,0.06347484]
[1731795153510,0.06045822,3150.7,3150.4,3.23765484]
[1731795153714,0.06045822,3150.7,3150.4,0.06347484]
[1731795154029,0.06044491,3150.6,3150.4,0.06347484]
[1731795154202,0.55,3150.8,3150.4,0.06347484]
[1731795154542,0.55,3150.8,3150.3,0.7713]
[1731795155037,0.0604638,3150.7,3150.3,0.7713]
[1731795155415,3.72381,3150.8,3150.3,0.7713]
[1731795155615,0.06044714,3150.6,3150.3,0.7713]
[1731795155826,3.72381,3150.8,3150.3,0.7713]
[1731795155996,0.06042825,3150.5,3150.3,0.7713]
[1731795156201,3.17397,3150.7,3150.3,0.7713]
[1731795156400,0.06040935,3150.4,3150.3,0.7713]
[1731795156613,3.17397,3150.7,3150.3,0.7713]
[1731795156828,0.060406,3150.4,3150.3,0.7713]
[1731795157042,3.17397,3150.7,3150.3,0.7713]
[1731795157351,0.060406,3150.4,3150.3,0.7713]
[1731795157552,3.17397,3150.7,3150.3,0.7713]
[1731795157851,0.060406,3150.4,3150.3,0.7713]
[1731795158002,3.17397,3150.7,3150.3,0.7713]
[1731795158203,0.060406,3150.4,3150.0,3.17457]
[1731795158404,0.55,3150.6,3150.1,0.8112]
[1731795158698,0.0603871,3150.3,3150.1,3.98566]
[1731795158903,0.55,3150.6,3150.1,3.98566]
[1731795159115,3.17397,3150.7,3150.1,3.98566]
[1731795159320,0.55,3150.6,3150.1,3.98566]
[1731795159529,0.61020726,3150.6,3150.1,3.98566]
[1731795159741,3.78423726,3150.6,3150.1,0.8112]
[1731795160599,4.55903726,3150.6,3150.1,0.8112]
[1731795161320,4.55903726,3150.6,3150.1,3.98569]
[1731795161716,0.61020726,3150.6,3150.2,3.17439]
[1731795161912,0.61020726,3150.6,3150.0,3.17456]
[1731795161913,0.06020726,3150.6,3150.5,3.17409]
[1731795162115,0.06020726,3150.6,3150.5,3.23756227]
[1731795162462,0.06020726,3150.6,3150.5,4.03266227]
[1731795162806,3.17337,3151.3,3150.6,3.17393]
[1731795163033,3.8855,3151.3,3150.7,0.0634687]
[1731795163370,3.23371953,3151.2,3150.7,3.2372787]
[1731795163528,0.55,3151.1,3150.7,3.17381]
[1731795163852,0.06030292,3151.0,3150.7,3.17381]
[1731795164352,0.06030292,3151.0,3150.7,3.23727881]
[1731795165654,0.06030292,3151.0,3150.8,3.97148]
[1731795166227,0.06030292,3151.0,3150.8,0.7977]
[1731795166575,0.06030292,3151.0,3150.9,3.17369]
[1731795166795,0.06030292,3151.0,3150.9,3.23715873]
[1731795167076,3.17313,3151.5,3151.0,3.17357]
[1731795167077,0.55,3151.4,3151.0,3.17357]
[1731795167276,6.34589,3151.7,3151.0,3.17357]
[1731795167626,3.17292,3151.7,3151.2,3.17338]
[1731795167826,3.17292,3151.7,3151.3,0.7977]
[1731795168437,0.55,3151.6,3151.3,0.7977]
[1731795168643,0.55,3151.7,3151.3,0.861159]
[1731795168942,0.55,3151.7,3151.3,0.7977]
[1731795169164,0.55,3151.8,3151.3,0.7977]
[1731795169473,0.55,3151.6,3151.3,0.7977]
[1731795170274,0.05768703,3151.5,3151.3,0.7977]
[1731795171384,0.55,3151.8,3151.3,0.7977]
[1731795171580,0.05766815,3151.4,3151.3,0.7977]
[1731795171890,0.55,3151.8,3151.3,0.7977]
[1731795172086,0.05766815,3151.4,3151.3,0.7977]
[1731795172298,3.72279,3151.8,3151.3,0.7977]
[1731795172797,0.05772479,3151.7,3151.3,0.7977]
[1731795172973,3.72279,3151.8,3151.3,0.7977]
[1731795173173,0.05770591,3151.6,3151.3,0.7977]
[1731795173534,3.72279,3151.8,3151.3,0.7977]
[1731795173666,0.05768703,3151.5,3151.3,0.7977]
[1731795173860,3.72279,3151.8,3151.3,0.7977]
[1731795174384,0.05772479,3151.7,3151.3,0.7977]
[1731795174715,3.72279,3151.8,3151.3,0.7977]
[1731795174909,0.05770591,3151.6,3151.3,0.7977]
[1731795175105,0.05772479,3151.7,3151.3,0.7977]
[1731795175264,0.05768703,3151.5,3151.3,0.7977]
[1731795175463,3.72279,3151.8,3151.3,0.7977]
[1731795175718,0.05766815,3151.4,3151.3,0.7977]
[1731795175932,0.8311,3152.0,3151.6,3.17293]
[1731795176210,0.8311,3152.0,3151.3,0.7977]
[1731795176211,0.7713,3152.5,3151.9,0.7929]
[1731795176366,3.94339,3152.5,3151.9,0.7929]
[1731795176574,0.7713,3152.5,3152.0,3.17258]
[1731795176886,3.17202,3152.6,3152.0,3.17258]
[1731795177419,3.1718,3152.8,3152.1,3.17242]
[1731795177565,3.1718,3152.8,3152.2,0.7929]
[1731795177764,3.1718,3152.8,3152.2,3.96519]
[1731795177990,3.17168,3152.9,3152.3,0.06343659]
[1731795178216,3.1716,3153.0,3152.4,3.17211]